Workbook

Sheet Painel
C3: Simulador de Faturas (Tarifas vigentes a partir de 23/02/2023)
B5: 1 - Digite o volume total consumido (m³)
B7: 2 - Clique no serviço oferecido
B10: 3 - Digite o número de economias* | E10: Categorias | G10: Número de economias | H10: Valor Água | J10: Valor Esgoto | L10: Valor Total
B11: relativas a cada categoria | E11: Residencial | H11: =IF(G11>0,Painel!G29*G11,Painel!G29) -> 0 | J11: =IF(G11>0,Painel!H29*G11,Painel!H29) -> 0 | L11: =H11+J11 -> 0
E12: Comercial | H12: =IF(G12>0,Painel!G30*G12,Painel!G30) -> 0 | J12: =IF(G12>0,Painel!H30*G12,Painel!H30) -> 0 | L12: 0
E13: Industrial | H13: =IF(G13>0,Painel!G31*G13,Painel!G31) -> 0 | J13: =IF(G13>0,Painel!H31*G13,Painel!H31) -> 0 | L13: 0
E14: Pública | H14: =IF(G14>0,Painel!G32*G14,Painel!G32) -> 0 | J14: =IF(G14>0,Painel!H32*G14,Painel!H32) -> 0 | L14: 0
E15: Valor Total | G15: =SUM(G11:G14) -> 0 | H15: 0 | I15: 0 | J15: 0 | K15: 0 | L15: 0 | M15: 0
C17: * Economia faz referência ao número de unidades familiares, comerciais ou produtivas que existem para um mesmo hidrômetro/ligação. Existindo em um mesma construção, com hidrômetro único, três famílias e duas lojas, têm-se 3 economias residenciais e 2 economias comerciais para 1 ligação
C23: Agência Reguladora de Serviços de Abastecimento de Água e Esgotamento Sanitário do Estado de MG - ARSAE
G27: Sem multiplicar pelas economias
B28: Serviço | C28: Volume/Economias | E28: Categoria | F28: N° economias | G28: Valor Água | H28: Valor Esgoto
B29: Água e Esgoto | C29: =IFERROR(Painel!E5/Painel!G15,0) -> 0 | E29: =Painel!E11 -> Residencial | F29: =Painel!G11 -> 0 | G29: =IF($F29>0,IF(OR($B$29="Só Água",$B$29="Água e Esgoto"),IF($C$29<=$O36,L36,IF(AND($C$29>$N37,$C$29<=$O37),L37,IF(AND($C$29>$N38,$C$29<=$O38),L38,IF(AND($C$29>$N39,$C$29<=$O39),L39,IF(AND($C$29>$N40,$C$29<=$O40),L40,IF($C$29>$N41,L41,"Erro")))))),0),0) -> 0 | H29: =IF($F29>0,IF(OR($B$29="Esgoto",$B$29="Água e Esgoto"),IF($C$29<=$O36,M36,IF(AND($C$29>$N37,$C$29<=$O37),M37,IF(AND($C$29>$N38,$C$29<=$O38),M38,IF(AND($C$29>$N39,$C$29<=$O39),M39,IF(AND($C$29>$N40,$C$29<=$O40),M40,IF($C$29>$N41,M41,"Erro")))))),0),0) -> 0
E30: =Painel!E12 -> Comercial | F30: =Painel!G12 -> 0 | G30: =IF($F30>0,IF(OR($B$29="Só Água",$B$29="Água e Esgoto"),IF($C$29<=$O42,L42,IF(AND($C$29>$N43,$C$29<=$O43),L43,IF(AND($C$29>$N44,$C$29<=$O44),L44,IF(AND($C$29>$N45,$C$29<=$O45),L45,IF($C$29>$N46,L46,"Erro"))))),0),0) -> 0 | H30: =IF($F30>0,IF(OR($B$29="Esgoto",$B$29="Água e Esgoto"),IF($C$29<=$O42,M42,IF(AND($C$29>$N43,$C$29<=$O43),M43,IF(AND($C$29>$N44,$C$29<=$O44),M44,IF(AND($C$29>$N45,$C$29<=$O45),M45,IF($C$29>$N46,M46,"Erro"))))),0),0) -> 0
E31: =Painel!E13 -> Industrial | F31: =Painel!G13 -> 0 | G31: =IF($F31>0,IF(OR($B$29="Esgoto",$B$29="Água e Esgoto"),IF($C$29<=$O47,L47,IF(AND($C$29>$N48,$C$29<=$O48),L48,IF(AND($C$29>$N49,$C$29<=$O49),L49,IF(AND($C$29>$N50,$C$29<=$O50),L50,IF(AND($C$29>$N51,$C$29<=$O51),L51,IF(AND($C$29>$N52,$C$29<=$O52),L52,IF($C$29>$N53,L53,"Erro"))))))),0),0) -> 0 | H31: =IF($F31>0,IF(OR($B$29="Esgoto",$B$29="Água e Esgoto"),IF($C$29<=$O47,M47,IF(AND($C$29>$N48,$C$29<=$O48),M48,IF(AND($C$29>$N49,$C$29<=$O49),M49,IF(AND($C$29>$N50,$C$29<=$O50),M50,IF(AND($C$29>$N51,$C$29<=$O51),M51,IF(AND($C$29>$N52,$C$29<=$O52),M52,IF($C$29>$N53,M53,"Erro"))))))),0),0) -> 0
E32: =Painel!E14 -> Pública | F32: =Painel!G14 -> 0 | G32: =IF($F32>0,IF(OR($B$29="Só Água",$B$29="Água e Esgoto"),IF($C$29<=$O54,L54,IF(AND($C$29>$N55,$C$29<=$O55),L55,IF(AND($C$29>$N56,$C$29<=$O56),L56,IF(AND($C$29>$N57,$C$29<=$O57),L57,IF(AND($C$29>$N58,$C$29<=$O58),L58,IF(AND($C$29>$N59,$C$29<=$O59),L59,IF($C$29>$N60,L60,"Erro"))))))),0),0) -> 0 | H32: =IF($F32>0,IF(OR($B$29="Esgoto",$B$29="Água e Esgoto"),IF($C$29<=$O54,M54,IF(AND($C$29>$N55,$C$29<=$O55),M55,IF(AND($C$29>$N56,$C$29<=$O56),M56,IF(AND($C$29>$N57,$C$29<=$O57),M57,IF(AND($C$29>$N58,$C$29<=$O58),M58,IF(AND($C$29>$N59,$C$29<=$O59),M59,IF($C$29>$N60,M60,"Erro"))))))),0),0) -> 0
B34: Min | C34: Max | D34: Intervalo | E34: Categorias | F34: Faixas | G34: Tarifas | J34: Acumulado | L34: Cálculos | N34: Referência Min. | O34: Referência Max.
G35: Água | H35: Esgoto | I35: unidade | J35: Água | K35: Esgoto | L35: Água | M35: Esgoto
B36: 0 | C36: 6 | D36: =C36-B36 -> 6 | E36: Residencial | F36: 0 a 6m³ | G36: 6.653947921 | H36: 6.653947921 | I36: R$/m³ | J36: =G36*D36 -> 39.92368753 | K36: =J36 -> 39.92368753 | L36: =IF($C$29<=O36,J36,"Fora da faixa") -> 39.92368753 | M36: =L36 -> 39.92368753 | N36: =B36 -> 0 | O36: =C36 -> 6
B37: 6 | C37: 10 | D37: =C37-B37 -> 4 | F37: > 6 a 10m³ | G37: 1.180106218 | H37: 1.180106218 | I37: R$/m³ | J37: =J36+(D37*G37) -> 44.6441124 | K37: =J37 -> 44.6441124 | L37: =IF(AND($C$29>N37,$C$29<=O37),(G37*($C$29-N37))+J36,"Fora da faixa") -> Fora da faixa | M37: =L37 -> Fora da faixa | N37: =B37 -> 6 | O37: =C37 -> 10
B38: 10 | C38: 15 | D38: =C38-B38 -> 5 | F38: > 10 a 15m³ | G38: 8.22244792 | H38: 8.22244792 | I38: R$/m³ | J38: =J37+(D38*G38) -> 85.756352 | K38: 85.756352 | L38: =IF(AND($C$29>N38,$C$29<=O38),(G38*($C$29-N38))+J37,"Fora da faixa") -> Fora da faixa | M38: Fora da faixa | N38: 10 | O38: 15
B39: 15 | C39: 20 | D39: =C39-B39 -> 5 | F39: > 15 a 20m³ | G39: 8.295452531 | H39: 8.295452531 | I39: R$/m³ | J39: =J38+(D39*G39) -> 127.2336147 | K39: 127.2336147 | L39: =IF(AND($C$29>N39,$C$29<=O39),(G39*($C$29-N39))+J38,"Fora da faixa") -> Fora da faixa | M39: Fora da faixa | N39: 15 | O39: 20
B40: 20 | C40: 40 | D40: =C40-B40 -> 20 | F40: > 20 a 40m³ | G40: 8.368225747 | H40: 8.368225747 | I40: R$/m³ | J40: =J39+(D40*G40) -> 294.5981296 | K40: 294.5981296 | L40: =IF(AND($C$29>N40,$C$29<=O40),(G40*($C$29-N40))+J39,"Fora da faixa") -> Fora da faixa | M40: Fora da faixa | N40: 20 | O40: 40
B41: 40 | F41: > 40 m³ | G41: 15.42063306 | H41: 15.42063306 | I41: R$/m³ | L41: =IF($C$29>N41,(G41*($C$29-N41))+J40,"Fora da faixa") -> Fora da faixa | M41: Fora da faixa | N41: 40
B42: 0 | C42: 6 | D42: =C42-B42 -> 6 | E42: Comercial | F42: 0 a 6m³ | G42: 9.692952825 | H42: 9.692952825 | I42: R$/m³ | J42: =D42*G42 -> 58.15771695 | K42: 58.15771695 | L42: =IF($C$29<=O42,J42,"Fora da faixa") -> 58.15771695 | M42: 58.15771695 | N42: 0 | O42: 6
B43: 6 | C43: 10 | D43: 4 | F43: > 6 a 10m³ | G43: 1.225806409 | H43: 1.225806409 | I43: R$/m³ | J43: =J42+(D43*G43) -> 63.06094259 | K43: 63.06094259 | L43: =IF(AND($C$29>N43,$C$29<=O43),(G43*($C$29-N43))+J42,"Fora da faixa") -> Fora da faixa | M43: Fora da faixa | N43: 6 | O43: 10
B44: 10 | C44: 40 | D44: 30 | F44: > 10 a 40m³ | G44: 12.08960972 | H44: 12.08960972 | I44: R$/m³ | J44: =J43+(D44*G44) -> 425.7492341 | K44: 425.7492341 | L44: =IF(AND($C$29>N44,$C$29<=O44),(G44*($C$29-N44))+J43,"Fora da faixa") -> Fora da faixa | M44: Fora da faixa | N44: 10 | O44: 40
B45: 40 | C45: 100 | D45: 60 | F45: > 40 a 100m³ | G45: 12.11020373 | H45: 12.11020373 | I45: R$/m³ | J45: 1152.361458 | K45: 1152.361458 | L45: =IF(AND($C$29>N45,$C$29<=O45),(G45*($C$29-N45))+J44,"Fora da faixa") -> Fora da faixa | M45: Fora da faixa | N45: 40 | O45: 100
B46: 100 | F46: > 100m³ | G46: 12.20646337 | H46: 12.20646337 | I46: R$/m³ | L46: =IF($C$29>N46,(G46*($C$29-N46))+J45,"Fora da faixa") -> Fora da faixa | M46: Fora da faixa | N46: 100
B47: 0 | C47: 6 | D47: 6 | E47: Industrial | F47: 0 a 6m³ | G47: 10.82006996 | H47: 10.82006996 | I47: R$/m³ | J47: =D47*G47 -> 64.92041976 | K47: 64.92041976 | L47: =IF($C$29<=O47,J47,"Fora da faixa") -> 64.92041976 | M47: 64.92041976 | N47: 0 | O47: 6
B48: 6 | C48: 10 | D48: 4 | F48: > 6 a 10m³ | G48: 1.177445194 | H48: 1.177445194 | I48: R$/m³ | J48: 69.63020053 | K48: 69.63020053 | L48: Fora da faixa | M48: Fora da faixa | N48: 6 | O48: 10
B49: 10 | C49: 20 | D49: 10 | F49: > 10 a 20m³ | G49: 12.20646337 | H49: 12.20646337 | I49: R$/m³ | J49: 191.6948343 | K49: 191.6948343 | L49: Fora da faixa | M49: Fora da faixa | N49: 10 | O49: 20
B50: 20 | C50: 40 | D50: 20 | F50: > 20 a 40m³ | G50: 12.2542461 | H50: 12.2542461 | I50: R$/m³ | J50: 436.7797563 | K50: 436.7797563 | L50: Fora da faixa | M50: Fora da faixa | N50: 20 | O50: 40
B51: 40 | C51: 100 | D51: 60 | F51: > 40 a 100m³ | G51: 12.36890152 | H51: 12.36890152 | I51: R$/m³ | J51: 1178.913848 | K51: 1178.913848 | L51: Fora da faixa | M51: Fora da faixa | N51: 40 | O51: 100
B52: 100 | C52: 600 | D52: 500 | F52: > 100 a 600m³ | G52: 12.98290385 | H52: 12.98290385 | I52: R$/m³ | J52: 7670.36577 | K52: 7670.36577 | L52: =IF(AND($C$29>N52,$C$29<=O52),(G52*($C$29-N52))+J51,"Fora da faixa") -> Fora da faixa | M52: Fora da faixa | N52: 100 | O52: 600
B53: 600 | F53: > 600m³ | G53: 13.15008556 | H53: 13.15008556 | I53: R$/m³ | L53: =IF($C$29>N53,(G53*($C$29-N53))+J52,"Fora da faixa") -> Fora da faixa | M53: Fora da faixa | N53: 600
B54: 0 | C54: 6 | D54: 6 | E54: Pública | F54: 0 a 6m³ | G54: 9.668078037 | H54: 9.668078037 | I54: R$/m³ | J54: =D54*G54 -> 58.00846822 | K54: 58.00846822 | L54: =IF($C$29<=O54,J54,"Fora da faixa") -> 58.00846822 | M54: 58.00846822 | N54: 0 | O54: 6
B55: 6 | C55: 10 | D55: 4 | F55: > 6 a 10m³ | G55: 1.389748616 | H55: 1.389748616 | I55: R$/m³ | J55: 63.56746269 | K55: 63.56746269 | L55: Fora da faixa | M55: Fora da faixa | N55: 6 | O55: 10
B56: 10 | C56: 20 | D56: 10 | F56: > 10 a 20m³ | G56: 10.93160157 | H56: 10.93160157 | I56: R$/m³ | J56: 172.8834784 | K56: 172.8834784 | L56: Fora da faixa | M56: Fora da faixa | N56: 10 | O56: 20
B57: 20 | C57: 40 | D57: 20 | F57: > 20 a 40m³ | G57: 13.78479759 | H57: 13.78479759 | I57: R$/m³ | J57: 448.5794302 | K57: 448.5794302 | L57: Fora da faixa | M57: Fora da faixa | N57: 20 | O57: 40
B58: 40 | C58: 100 | D58: 60 | F58: > 40 a 100m³ | G58: 13.92178247 | H58: 13.92178247 | I58: R$/m³ | J58: 1283.886378 | K58: 1283.886378 | L58: Fora da faixa | M58: Fora da faixa | N58: 40 | O58: 100
B59: 100 | C59: 300 | D59: 200 | F59: > 100 a 300m³ | G59: 13.96979659 | H59: 13.96979659 | I59: R$/m³ | J59: 4077.845697 | K59: 4077.845697 | L59: Fora da faixa | M59: Fora da faixa | N59: 100 | O59: 300
B60: 300 | F60: > 300m³ | G60: 15.14932433 | H60: 15.14932433 | I60: R$/m³ | L60: =IF($C$29>N60,(G60*($C$29-N60))+J59,"Fora da faixa") -> Fora da faixa | M60: Fora da faixa | N60: 300

Sheet Tutorial
L5: Exemplo de uso do simulador

Sheet Tabela de Tarifas
B2: RESOLUÇÃO ARSAE-MG Nº 175, DE 15 DE DEZEMBRO DE 2022
B3: Categorias | C3: Faixas | D3: Água | E3: Esgoto | F3: Unidade
B4: Residencial | C4: 0 a 6m³ | D4: 6.653947921 | E4: 6.653947921 | F4: R$/m³
C5: > 6 a 10m³ | D5: 1.180106218 | E5: 1.180106218 | F5: R$/m³
C6: > 10 a 15m³ | D6: 8.22244792 | E6: 8.22244792 | F6: R$/m³
C7: > 15 a 20m³ | D7: 8.295452531 | E7: 8.295452531 | F7: R$/m³
C8: > 20 a 40m³ | D8: 8.368225747 | E8: 8.368225747 | F8: R$/m³
C9: > 40 m³ | D9: 15.42063306 | E9: 15.42063306 | F9: R$/m³
B10: Pública | C10: 0 a 6m³ | D10: 9.668078037 | E10: 9.668078037 | F10: R$/m³
C11: > 6 a 10m³ | D11: 1.389748616 | E11: 1.389748616 | F11: R$/m³
C12: > 10 a 20m³ | D12: 10.93160157 | E12: 10.93160157 | F12: R$/m³
C13: > 20 a 40m³ | D13: 13.78479759 | E13: 13.78479759 | F13: R$/m³
C14: > 40 a 100m³ | D14: 13.92178247 | E14: 13.92178247 | F14: R$/m³
C15: > 100 a 300m³ | D15: 13.96979659 | E15: 13.96979659 | F15: R$/m³
C16: > 300m³ | D16: 15.14932433 | E16: 15.14932433 | F16: R$/m³
B17: Comercial | C17: 0 a 6m³ | D17: 9.692952825 | E17: 9.692952825 | F17: R$/m³
C18: > 6 a 10m³ | D18: 1.225806409 | E18: 1.225806409 | F18: R$/m³
C19: > 10 a 40m³ | D19: 12.08960972 | E19: 12.08960972 | F19: R$/m³
C20: > 40 a 100m³ | D20: 12.11020373 | E20: 12.11020373 | F20: R$/m³
C21: > 100m³ | D21: 12.20646337 | E21: 12.20646337 | F21: R$/m³
B22: Industrial | C22: 0 a 6m³ | D22: 10.82006996 | E22: 10.82006996 | F22: R$/m³
C23: > 6 a 10m³ | D23: 1.177445194 | E23: 1.177445194 | F23: R$/m³
C24: > 10 a 20m³ | D24: 12.20646337 | E24: 12.20646337 | F24: R$/m³
C25: > 20 a 40m³ | D25: 12.2542461 | E25: 12.2542461 | F25: R$/m³
C26: > 40 a 100m³ | D26: 12.36890152 | E26: 12.36890152 | F26: R$/m³
C27: > 100 a 600m³ | D27: 12.98290385 | E27: 12.98290385 | F27: R$/m³
C28: > 600m³ | D28: 13.15008556 | E28: 13.15008556 | F28: R$/m³
B30: Tarifas mínimas*
B31: Categorias | C31: Valor (R$) | E31: * -> As tarifas mínimas são equivalentes ao preço do consumo
B32: Residencial | C32: 79.8422844 | E32: de 6m³ de água e/ou esgoto para todas as categorias.
B33: Comercial | C33: 116.3098805
B34: Industrial | C34: 129.8348233
B35: Pública | C35: 116.0206387
